bitfinex-derivatives/quotes_BNBF0:USTF0_20250309
["timestamp","ask_amount","ask_price","bid_price","bid_amount"]
[1741555903455,0.61395668,556.11,555.84,0.29795077]
[1741555903752,0.61395668,556.11,555.85,0.29795077]
[1741555903957,0.61395668,556.11,555.86,0.29795077]
[1741555904255,0.61395668,556.11,555.87,0.29795077]
[1741555904454,0.61395668,556.11,555.83,0.29795077]
[1741555904956,0.31295668,556.11,555.83,0.29795077]
[1741555905155,0.31295668,556.11,555.82,0.35982872]
[1741555905357,0.31295668,556.11,555.83,0.29794066]
[1741555908056,0.31295668,556.11,555.84,0.35981577]
[1741555908254,0.31295668,556.11,555.85,0.29794066]
[1741555908454,0.31295668,556.11,555.86,0.35980282]
[1741555908654,0.31295668,556.11,555.87,0.29794066]
[1741555908859,0.31295668,556.11,555.88,0.35978988]
[1741555910055,1.069,556.14,555.88,0.35978988]
[1741555911562,0.31302424,556.13,555.88,0.35978988]
[1741555912863,1.069,556.14,555.88,0.35978988]
[1741555913162,0.31302424,556.12,555.88,0.35978988]
[1741555916056,1.069,556.14,555.88,0.35978988]
[1741555916456,0.3130172,556.11,555.88,0.35978988]
[1741555918961,1.069,556.14,555.88,0.35978988]
[1741555919867,4.24485643,556.13,555.88,0.35978988]
[1741555920069,2.86725324,556.12,555.88,0.35978988]
[1741555920268,1.69066263,556.13,555.88,0.35978988]
[1741555920462,1.37760319,556.11,555.88,0.35978988]
[1741555921063,4.24487794,556.1,555.88,0.35978988]
[1741555921268,2.86727475,556.09,555.88,0.35978988]
[1741555921564,2.86727475,556.08,555.88,0.35978988]
[1741555921766,2.86727475,556.07,555.88,0.35978988]
[1741555921962,2.86727475,556.06,555.88,0.35978988]
[1741555922163,2.86727475,556.05,555.88,0.35978988]
[1741555922367,2.86727475,556.04,555.88,0.35978988]
[1741555922565,2.86727475,556.03,555.88,0.35978988]
[1741555922768,2.44629212,556.02,555.88,0.35978988]
[1741555923067,1.37760319,556.02,555.88,0.35978988]
[1741555923268,1.37760319,556.01,555.88,0.35978988]
[1741555923666,1.37760319,556.0,555.88,0.35978988]
[1741555924667,1.37760319,555.99,555.88,0.35978988]
[1741555925070,1.37760319,555.98,555.88,0.35978988]
[1741555925567,0.31315945,555.97,555.88,0.35978988]
[1741555925872,1.37760319,555.96,555.88,0.35978988]
[1741555926571,1.37760319,555.95,555.88,0.35978988]
[1741555926972,1.37760319,555.95,555.13,1.32493722]
[1741555927276,1.37760319,555.94,555.15,0.36026299]
[1741555927470,1.37760319,555.94,555.16,0.29814845]
[1741555927875,1.37760319,555.93,555.16,0.29814845]
[1741555928276,0.31319327,555.92,555.16,0.29814845]
[1741555928776,2.86739773,555.91,555.16,0.29814845]
[1741555928972,0.31319327,555.92,555.16,0.29814845]
[1741555928973,7.45546431,555.9,555.16,0.29814845]
[1741555929277,7.45546431,555.89,555.16,0.29814845]
[1741555929478,7.45546431,555.88,555.16,0.29814845]
[1741555929677,8.15672784,555.87,555.16,0.29814845]
[1741555929973,4.57585664,555.86,555.17,0.36025001]
[1741555930178,4.57567891,555.85,555.17,0.36025001]
[1741555930478,7.45448058,555.84,555.18,0.29814845]
[1741555930776,4.67804866,555.83,555.19,0.36023703]
[1741555930977,7.45354954,555.82,555.2,0.29814845]
[1741555931176,7.45354954,555.81,555.21,0.36022405]
[1741555931373,7.45354954,555.8,555.22,0.29814845]
[1741555931578,11.03426486,555.79,555.21,0.36022405]
[1741555931776,7.45354954,555.78,555.21,0.36022405]
[1741555931978,4.5743071,555.77,555.21,0.36022405]
[1741555932176,2.86674733,555.76,555.21,0.36022405]
[1741555932379,2.86674733,555.75,555.21,0.36022405]
[1741555932575,2.86674733,555.74,555.21,0.36022405]
[1741555932882,6.44746265,555.73,555.21,0.36022405]
[1741555933080,2.86674733,555.72,555.21,0.36022405]
[1741555933281,6.44746265,555.71,555.22,0.29833933]
[1741555933484,2.86674733,555.7,555.21,0.36022405]
[1741555933682,6.44746265,555.69,555.22,0.29835717]
[1741555933885,2.86499456,555.68,555.22,0.29835717]
[1741555934182,3.1759115,555.67,555.22,0.29835717]
[1741555934377,1.37666451,555.67,555.22,0.29835717]
[1741555934778,1.37666451,555.66,555.22,0.29835717]
[1741555935183,0.31332721,555.65,555.22,0.29835717]
[1741555935486,1.68999172,555.65,555.21,0.36022405]
[1741555936278,2.40566451,555.64,555.21,0.36022405]
[1741555937185,1.37666451,555.63,555.21,0.36022405]
[1741555937384,1.37666451,555.62,555.21,0.36022405]
[1741555937985,1.37666451,555.61,555.21,0.36022405]
[1741555938485,4.55288987,555.61,555.21,0.36022405]
[1741555938686,4.23941307,555.6,555.21,0.36022405]
[1741555938886,6.43499283,555.59,555.21,0.36022405]
[1741555939185,2.86274856,555.58,555.21,0.36022405]
[1741555939381,2.86274856,555.57,555.21,0.36022405]
[1741555939583,4.56192614,555.56,555.21,0.36022405]
[1741555939785,2.86307889,555.55,555.21,0.36022405]
[1741555939985,2.86307889,555.54,555.21,0.36022405]
[1741555940181,6.43532316,555.53,555.21,0.36022405]
[1741555940382,2.86307889,555.52,555.21,0.36022405]
[1741555940684,1.06272433,555.51,555.21,0.36022405]
[1741555940886,4.6349686,555.51,555.21,0.36022405]
[1741555941180,1.06272433,555.5,555.21,0.36022405]
[1741555941386,1.06272433,555.49,555.21,0.36022405]
[1741555941584,2.86101385,555.48,555.21,0.36022405]
[1741555941780,2.86101385,555.47,555.21,0.36022405]
[1741555941985,2.86101385,555.46,555.21,0.36022405]
[1741555942180,1.06272433,555.45,555.21,0.36022405]
[1741555942388,1.06272433,555.44,555.21,0.36022405]
[1741555942684,3.57224427,555.45,555.21,0.36022405]
[1741555942885,3.57224427,555.43,555.21,0.36022405]
[1741555943279,1.37666451,555.42,555.21,0.36022405]
[1741555943586,1.37666451,555.41,555.21,0.36022405]
[1741555944285,1.69027832,555.4,555.21,0.36022405]
[1741555944680,1.37666451,555.39,555.21,0.36022405]
[1741555945286,0.31361381,555.4,555.21,0.36022405]
[1741555945986,7.41660037,555.52,555.21,0.36022405]
[1741555946187,4.5459251,555.51,555.21,0.36022405]
[1741555946385,2.85194084,555.5,555.21,0.36022405]
[1741555946580,2.85194084,555.49,555.21,0.36022405]
[1741555946785,2.85194084,555.48,555.21,0.36022405]
[1741555946981,1.0577688,555.47,555.21,0.36022405]
[1741555947187,1.0577688,555.46,555.21,0.36022405]
[1741555947487,2.85014369,555.45,555.21,0.36022405]
[1741555947682,2.85014369,555.44,553.76,1.32493722]
[1741555947885,4.54090445,555.43,553.78,0.36115424]
[1741555948085,3.54532977,555.44,553.78,0.36115424]
[1741555948086,4.54090445,555.42,553.79,0.29854893]
[1741555948287,2.85014369,555.41,553.81,0.36113468]
[1741555948482,2.85014369,555.4,553.82,0.29854893]
[1741555948682,3.54532977,555.42,553.76,1.32493722]
[1741555948683,2.85014369,555.39,553.84,0.36111512]
[1741555948989,2.85014369,555.38,553.85,0.29854893]
[1741555949189,1.0567944,555.37,553.87,0.36109556]
[1741555949390,1.0567944,555.36,553.88,0.29854893]
[1741555949590,1.0567944,555.35,553.9,0.361076]
[1741555949890,4.60212417,555.34,553.91,0.2985508]
[1741555950091,3.54532977,555.34,553.93,0.36105645]
[1741555950289,1.05521816,555.33,553.94,0.2985508]
[1741555950484,1.05471364,555.32,553.96,0.36103689]
[1741555950690,1.05471364,555.31,553.97,0.2985508]
[1741555950891,1.05471364,555.3,553.99,0.36101734]
[1741555951085,3.54532977,555.32,554.0,0.2985508]
[1741555951289,1.05469333,555.31,554.02,0.36099779]
[1741555951489,3.54532977,555.32,554.03,0.2985508]
[1741555951490,3.54532977,555.29,554.03,0.2985508]
[1741555951692,3.54532977,555.29,554.05,0.36097825]
[1741555951887,3.54532977,555.29,554.06,0.2985508]
[1741555952094,3.54532977,555.29,554.08,0.3609587]
[1741555952290,0.302,555.32,554.08,0.3609587]
[1741555952291,2.41640873,555.28,554.09,0.2985508]
[1741555952487,3.53498717,555.27,554.11,0.36093916]
[1741555952691,3.53498717,555.27,554.12,0.2985508]
[1741555952892,1.36269407,555.26,554.14,0.36091962]
[1741555953093,1.36269407,555.26,554.15,0.2985508]
[1741555953287,0.31363219,555.25,554.17,0.36090008]
[1741555953493,0.31363219,555.25,554.18,0.2985508]
[1741555953693,1.36269407,555.24,554.2,0.36088054]
[1741555953895,1.36269407,555.24,554.21,0.2985508]
[1741555954095,0.31363219,555.25,554.22,0.2985508]
[1741555954397,0.31363219,555.25,554.24,0.3608545]
[1741555954589,0.31363219,555.25,554.25,0.29851783]
[1741555954790,0.31363219,555.25,554.26,0.29851783]
[1741555954996,0.31363219,555.25,554.27,0.29851783]
[1741555955196,1.186,555.28,554.28,0.29850294]
[1741555955397,1.186,555.28,554.29,0.29850294]
[1741555955593,1.186,555.28,554.3,0.29850294]
[1741555955797,1.186,555.28,554.31,0.29850294]
[1741555955999,1.186,555.28,554.32,0.29850294]
[1741555956200,1.186,555.28,554.33,0.29850294]
[1741555956393,0.31355447,555.27,554.34,0.29850294]
[1741555956593,0.31355447,555.27,554.24,0.3608545]
[1741555956594,0.31355447,555.27,554.35,0.29850294]
[1741555956798,0.31355447,555.27,554.36,0.29850294]
[1741555956994,0.31355447,555.27,554.37,0.29850294]
[1741555957201,0.31355447,555.27,554.38,0.29850294]
[1741555957396,0.31355447,555.27,554.39,0.29850294]
[1741555957701,0.31355447,555.27,554.4,0.29850294]
[1741555957902,0.31355447,555.27,554.41,0.29850294]
[1741555958107,1.186,555.28,554.43,0.36073084]
[1741555958308,1.186,555.28,554.44,0.29850294]
[1741555958510,1.186,555.28,554.45,0.29850294]
[1741555958717,1.186,555.28,554.46,0.36071132]
[1741555958913,1.186,555.28,554.47,0.29850294]
[1741555959211,1.186,555.28,554.48,0.29850294]
[1741555959417,0.31350645,555.27,554.49,0.29850294]
[1741555959612,0.31350645,555.27,554.5,0.29850294]
[1741555959817,0.31350645,555.27,554.51,0.29850294]
[1741555960035,0.31350645,555.27,554.52,0.29850294]
[1741555960326,0.31350645,555.27,554.53,0.29850294]
[1741555960639,0.31350645,555.27,554.54,0.29850294]
[1741555960933,0.31350645,555.27,554.55,0.29850294]
[1741555961131,1.186,555.28,554.56,0.29850294]
[1741555961432,1.186,555.28,554.57,0.29850294]
[1741555961631,1.186,555.28,554.58,0.29850294]
[1741555961832,1.186,555.28,554.49,0.3606918]
[1741555961833,1.186,555.28,554.59,0.6591297]
[1741555962032,1.186,555.28,554.6,0.29850294]
[1741555962229,1.186,555.28,554.61,0.6591167]
[1741555962534,1.186,555.28,554.62,0.29850294]
[1741555962736,1.186,555.28,554.63,0.29850294]
[1741555962930,1.186,555.28,554.62,0.29850294]
[1741555963138,1.186,555.28,554.63,0.29850294]
[1741555963333,1.186,555.28,554.61,0.36061376]
[1741555963334,1.186,555.28,554.64,0.29850294]
[1741555963523,1.186,555.28,554.62,0.29850294]
[1741555964436,1.186,555.28,554.63,0.36060076]
[1741555964637,1.186,555.28,554.64,0.29850294]
[1741555965044,1.186,555.28,554.65,0.36058775]
[1741555965237,0.31348245,555.27,554.66,0.29850294]
[1741555965436,0.31348245,555.27,554.67,0.36057475]
[1741555965634,0.31348245,555.27,554.68,0.29850294]
[1741555965937,0.31348245,555.27,554.69,0.36056175]
[1741555966135,0.31348245,555.27,554.7,0.29844416]
[1741555966533,1.186,555.28,554.7,0.29844416]
[1741555967933,1.186,555.28,554.69,0.36056175]
[1741555968130,1.186,555.28,554.7,0.29841436]
[1741555969134,1.186,555.28,554.71,0.36054875]
[1741555969433,1.186,555.28,554.72,0.29841436]
[1741555969630,1.186,555.28,554.71,0.36054875]
[1741555969826,1.186,555.28,554.72,0.29841247]
[1741555970831,1.186,555.28,554.73,0.36053575]
[1741555971029,1.186,555.28,554.74,0.29841247]
[1741555971537,1.186,555.28,554.75,0.29836387]
[1741555971735,1.186,555.28,554.74,0.29836387]
[1741555971934,1.186,555.28,554.75,0.29836387]
[1741555972139,1.186,555.28,554.76,0.29836387]
[1741555972336,1.186,555.28,554.77,0.29836387]
[1741555972543,1.186,555.28,554.74,0.29836387]
[1741555972730,1.186,555.28,554.75,0.29836387]
[1741555972936,1.186,555.28,554.74,0.29836387]
[1741555973234,1.186,555.28,554.75,0.65888662]
[1741555973432,1.186,555.28,554.76,0.65888197]
[1741555973637,1.186,555.28,554.77,0.65887548]
[1741555973821,1.186,555.28,554.78,0.65886898]
[1741555974029,1.186,555.28,554.79,0.65886248]
[1741555974226,1.186,555.28,554.8,0.29836572]
[1741555974415,1.186,555.28,554.81,0.36048376]
[1741555974619,1.186,555.28,554.82,0.29836572]
[1741555974821,1.186,555.28,554.83,0.36047077]
[1741555975320,1.186,555.28,554.84,0.29836473]
[1741555975715,1.186,555.28,554.85,0.36045778]
[1741555975921,1.186,555.28,554.86,0.29836473]
[1741555976118,1.186,555.28,554.87,0.36044478]
[1741555976319,1.186,555.28,554.88,0.29836473]
[1741555976622,1.186,555.28,554.89,0.36043179]
[1741555977018,1.186,555.28,554.9,0.29840478]
[1741555977219,1.186,555.28,554.91,0.3604188]
[1741555977516,1.186,555.28,554.92,0.29840478]
[1741555977715,1.186,555.28,554.93,0.36040581]
[1741555977917,1.186,555.28,554.94,0.29840478]
[1741555978221,1.186,555.28,554.95,0.36039282]
[1741555978416,1.186,555.28,554.96,0.29840478]
[1741555978622,1.186,555.28,554.97,0.36037984]
[1741555978819,1.186,555.28,554.98,0.29840478]
[1741555979012,1.186,555.28,554.99,0.36036685]
[1741555979216,1.186,555.28,555.0,0.29840478]
[1741555980014,1.186,555.28,555.01,0.36035386]
[1741555980222,1.186,555.28,555.02,0.29840478]
[1741555980425,1.186,555.28,555.03,0.36034088]
[1741555980623,0.31340904,555.32,555.04,0.29838935]
[1741555980823,0.31340904,555.32,555.05,0.36032789]
[1741555981017,0.31340904,555.32,555.06,0.29838935]
[1741555981222,0.31340904,555.32,555.07,0.36031491]
[1741555981423,0.31340904,555.32,555.08,0.29838935]
[1741555981618,0.31340904,555.32,555.09,0.36030193]
[1741555981923,0.31340904,555.32,555.1,0.29838935]
[1741555982124,0.302,555.37,555.11,0.36028895]
[1741555982826,0.302,555.37,555.12,0.29839357]
[1741555983027,0.302,555.37,555.13,0.36027597]
[1741555983226,0.31334414,555.36,555.13,0.36027597]
[1741555985127,0.302,555.37,555.13,0.36027597]
[1741555986229,0.313676,555.36,555.13,0.36027597]
[1741555986427,0.313676,555.36,555.14,0.29839121]
[1741555986628,0.313676,555.36,555.15,0.36026299]
[1741555986829,0.313676,555.36,555.16,0.29839121]
[1741555987027,0.313676,555.36,555.17,0.36025001]
[1741555991026,0.302,555.37,555.17,0.36025001]
[1741555992230,0.31343021,555.36,555.17,0.36025001]
[1741555994135,0.302,555.37,555.17,0.36025001]
[1741555995333,0.31342033,555.36,555.17,0.36025001]
[1741555996234,0.31342033,555.36,555.18,0.29837681]
[1741555996530,0.302,555.37,555.19,0.36023703]
[1741555996730,0.302,555.37,555.2,0.29831471]
[1741555997035,0.302,555.37,555.21,0.36022405]
[1741555997428,0.302,555.37,555.22,0.29830209]
[1741555997932,0.302,555.37,555.23,0.36021108]
[1741555998335,0.302,555.37,555.24,0.2982918]
[1741555998635,0.302,555.37,555.25,0.3601981]
[1741555999131,0.302,555.37,555.26,0.29827755]
[1741556001140,0.302,555.37,555.27,0.36018513]
[1741556001441,0.302,555.37,555.28,0.29827755]
[1741556001741,0.302,555.37,555.29,0.36017216]
[1741556001934,0.302,555.37,555.3,0.29827755]
[1741556003740,0.302,555.37,555.31,0.36015919]
[1741556003940,1.206,555.44,555.32,0.29827755]
[1741556004141,1.206,555.44,555.33,0.36014621]
[1741556004340,1.206,555.44,555.34,0.29827755]
[1741556004841,1.206,555.44,555.35,0.36013324]
[1741556005038,1.206,555.44,555.36,0.29827755]
[1741556005236,1.206,555.44,555.37,0.29820818]
[1741556005437,1.206,555.44,555.36,0.29820818]
[1741556005637,1.206,555.44,555.37,0.6583288]
[1741556005835,1.206,555.44,555.38,0.65832231]
[1741556006040,1.206,555.44,555.39,0.29820852]
[1741556008336,1.206,555.44,555.4,0.36010082]
[1741556008535,1.206,555.44,555.41,0.29820852]
[1741556008740,1.206,555.44,555.42,0.36008786]
[1741556008937,1.206,555.44,555.43,0.29820852]
[1741556009745,1.206,555.44,555.43,0.65828989]
[1741556011044,1.206,555.44,555.43,0.36008137]
[1741556011245,1.206,555.44,555.43,0.65819214]
[1741556012945,0.302,555.73,555.43,0.65814784]
[1741556013244,0.302,555.73,555.44,0.29806647]
[1741556013842,0.302,555.73,555.45,0.36006841]
[1741556014043,0.302,555.73,555.46,0.29806647]
[1741556016543,0.302,555.73,555.45,0.36006841]
[1741556016741,0.302,555.73,555.46,0.29797279]
[1741556026453,0.302,555.73,555.45,0.36006841]
[1741556026751,0.302,555.73,555.46,0.29785701]
[1741556026957,1.013,555.77,555.46,0.29785701]
[1741556027151,1.013,555.77,555.47,0.36005544]
[1741556027356,1.013,555.77,555.48,0.29785701]
[1741556027656,1.013,555.77,555.49,0.29785783]
[1741556027852,1.013,555.77,555.47,0.36005544]
[1741556027853,1.013,555.77,555.48,0.29785783]
[1741556028257,1.013,555.77,555.49,0.36004248]
[1741556028457,1.013,555.77,555.5,0.29785783]
[1741556028858,1.013,555.77,555.51,0.36002952]
[1741556029158,1.013,555.77,555.52,0.29785783]
[1741556029358,1.013,555.77,555.53,0.36001656]
[1741556029548,1.013,555.77,555.54,0.2978398]
[1741556030058,1.013,555.77,555.55,0.3600036]
[1741556030259,1.013,555.77,555.56,0.2978398]
[1741556030763,1.013,555.77,555.57,0.35999064]
[1741556030960,1.013,555.77,555.58,0.2978398]
[1741556031258,1.013,555.77,555.59,0.65780336]
[1741556031654,1.013,555.77,555.6,0.29782568]
[1741556032258,1.013,555.77,555.61,0.35996472]
[1741556032458,1.013,555.77,555.62,0.29782568]
[1741556032960,1.013,555.77,555.63,0.35995176]
[1741556033155,1.013,555.77,555.64,0.29782568]
[1741556033360,1.013,555.77,555.65,0.35993881]
[1741556033556,1.013,555.77,555.66,0.29782568]
[1741556033757,1.013,555.77,555.67,0.35992585]
[1741556033959,1.013,555.77,555.68,0.29782568]
[1741556034157,1.013,555.77,555.69,0.3599129]
[1741556034362,1.013,555.77,555.7,0.29782568]
[1741556034556,1.013,555.77,555.71,0.35989994]
[1741556034757,1.013,555.77,555.72,0.29782568]
[1741556034962,1.013,555.77,555.73,0.35988699]
[1741556035262,1.013,555.77,555.74,0.29782568]
[1741556036159,1.013,555.77,555.75,0.35987404]
[1741556036360,1.013,555.77,555.76,0.29782568]
[1741556036662,1.013,555.77,555.76,0.65770226]
[1741556040257,1.013,555.77,555.76,0.35986756]
[1741556040460,1.013,555.77,555.76,0.65761426]
[1741556041862,0.302,555.88,555.76,0.65761426]
[1741556042064,0.302,555.88,555.77,0.65760779]
[1741556042258,0.302,555.88,555.78,0.2977467]
[1741556045066,0.302,555.88,555.79,0.35984814]
[1741556045266,0.302,555.88,555.8,0.2977467]
[1741556045466,0.302,555.88,555.81,0.35983519]
[1741556045665,0.302,555.88,555.82,0.2977467]
[1741556045864,0.302,555.88,555.83,0.35982224]
[1741556046063,0.302,555.88,555.84,0.2977467]
[1741556046270,0.302,555.88,555.85,0.3598093]
[1741556046466,0.302,555.88,555.86,0.2977467]
[1741556047062,0.302,555.88,555.85,0.3598093]
[1741556047063,0.302,555.88,555.87,0.29767855]
[1741556047261,0.302,555.88,555.86,0.29767855]
[1741556047465,0.302,555.88,555.87,0.29767855]
[1741556047665,0.302,555.88,555.86,0.29767855]
[1741556047867,0.302,555.88,555.87,0.6574749]
[1741556050767,0.302,555.88,555.87,0.65747615]
[1741556052267,0.958,556.09,555.87,0.65747615]
[1741556052465,0.958,556.09,555.88,0.2976798]
[1741556054380,0.958,556.09,555.87,0.35979635]
[1741556054583,0.958,556.09,555.88,0.29762357]
[1741556054982,0.958,556.09,555.89,0.35978341]
[1741556055177,0.958,556.09,555.9,0.29762357]
[1741556056183,0.958,556.09,555.91,0.35977046]
[1741556056381,0.958,556.09,555.92,0.29762357]
[1741556056778,0.958,556.09,555.93,0.35975752]
[1741556056978,0.958,556.09,555.94,0.29762357]
[1741556057982,0.958,556.09,555.95,0.29761874]
[1741556058278,0.958,556.09,555.93,0.35975752]
[1741556058279,0.958,556.09,555.94,0.29761874]
[1741556058477,0.958,556.09,555.96,0.29761874]
[1741556058681,0.958,556.09,555.97,0.29761874]
[1741556058885,0.958,556.09,555.94,0.29761874]
[1741556059085,0.958,556.09,555.98,0.29761874]
[1741556059285,0.958,556.09,555.99,0.29761874]
[1741556059487,0.958,556.09,556.0,0.29761874]
[1741556059786,0.958,556.09,556.01,0.29761874]
[1741556059985,0.958,556.09,555.93,0.35975752]
[1741556059986,0.958,556.09,555.94,0.29761874]
[1741556060180,0.958,556.09,555.95,0.29761874]
[1741556060385,0.958,556.09,555.96,0.29761874]
[1741556060584,0.958,556.09,555.94,0.29761874]
[1741556060787,0.958,556.09,555.95,0.29761874]
[1741556061188,0.958,556.09,555.96,0.29761874]
[1741556061485,0.958,556.09,555.97,0.65735038]
[1741556061679,0.958,556.09,555.98,0.29761874]
[1741556061880,0.958,556.09,555.99,0.35971869]
[1741556062080,0.302,556.23,556.0,0.29761874]
[1741556062387,0.302,556.23,556.01,0.35970576]
[1741556062581,0.302,556.23,556.02,0.29761874]
[1741556062785,0.302,556.23,556.03,0.35969282]
[1741556062987,0.302,556.23,556.04,0.29761874]
[1741556065486,0.302,556.23,556.05,0.29752823]
[1741556065688,0.302,556.23,556.04,0.29752823]
[1741556065883,0.302,556.23,556.05,0.29752823]
[1741556066087,0.302,556.23,556.04,0.29752823]
[1741556066388,0.302,556.23,556.05,0.29752823]
[1741556066589,0.302,556.23,556.04,0.29752823]
[1741556066788,0.302,556.23,556.05,0.29752823]
[1741556067082,0.302,556.23,556.03,0.35969282]
[1741556067283,0.302,556.23,556.04,0.29749106]
[1741556067488,1.085,556.35,556.04,0.29749106]
[1741556067690,1.085,556.35,556.05,0.29749106]
[1741556067888,1.085,556.35,556.06,0.29749106]
[1741556068088,1.085,556.35,556.07,0.29749106]
[1741556068286,1.085,556.35,556.08,0.29749106]
[1741556068489,1.085,556.35,556.09,0.29749106]
[1741556068687,1.085,556.35,556.1,0.29749106]
[1741556068888,1.085,556.35,556.11,0.29742946]
[1741556069186,1.085,556.35,556.12,0.29742946]
[1741556069387,1.085,556.35,556.03,0.35969282]
[1741556069691,1.085,556.35,556.04,0.29739284]
[1741556069890,1.085,556.35,556.05,0.29739284]
[1741556070092,1.085,556.35,556.06,0.29739284]
[1741556070285,1.085,556.35,556.07,0.29739284]
[1741556070587,1.085,556.35,556.08,0.29739284]
[1741556070784,1.085,556.35,556.09,0.29739284]
[1741556070988,1.085,556.35,556.1,0.29739284]
[1741556071187,1.085,556.35,556.11,0.29739284]
[1741556071385,1.085,556.35,556.12,0.29739284]
[1741556071587,1.085,556.35,556.13,0.29739284]
[1741556071791,1.085,556.35,556.14,0.29739284]
[1741556071992,1.085,556.35,556.15,0.29739284]
[1741556072191,1.085,556.35,556.16,0.29739284]
[1741556072391,1.085,556.35,556.17,0.29739284]
[1741556072588,1.085,556.35,556.18,0.29738388]
[1741556072785,1.085,556.35,556.19,0.29738388]
[1741556072991,1.085,556.35,556.2,0.29738388]
[1741556073187,1.085,556.35,556.03,0.35969282]
[1741556073188,1.085,556.35,556.21,0.29738388]
[1741556073495,1.085,556.35,556.22,0.29738388]
[1741556073695,1.085,556.35,556.23,0.29738388]
[1741556073892,1.085,556.35,556.24,0.29738388]
[1741556074088,1.085,556.35,556.25,0.29738388]
[1741556074295,1.085,556.35,556.09,1.34517987]
[1741556074494,1.085,556.35,556.1,0.29740016]
[1741556074693,1.085,556.35,556.11,0.65704123]
[1741556074896,1.085,556.35,556.12,0.35963461]
[1741556075195,1.085,556.35,556.13,0.29740016]
[1741556075393,1.085,556.35,556.14,0.29740016]
[1741556075588,1.085,556.35,556.15,0.65701537]
[1741556075794,1.085,556.35,556.16,0.6570089]
[1741556075995,1.085,556.35,556.17,0.65700243]
[1741556076196,1.085,556.35,556.18,0.65699597]
[1741556076395,1.085,556.35,556.19,0.6569895]
[1741556076690,1.085,556.35,556.2,0.65698304]
[1741556076892,1.085,556.35,556.21,0.65697657]
[1741556077195,1.085,556.35,556.22,0.65697011]
[1741556077396,1.085,556.35,556.23,0.65696364]
[1741556077596,1.085,556.35,556.24,0.29740016]
[1741556077797,1.085,556.35,556.25,0.65695072]
[1741556078096,1.085,556.35,556.26,0.65694425]
[1741556078296,1.085,556.35,556.27,0.65693779]
[1741556078496,1.085,556.35,555.97,1.34517987]
[1741556078497,1.085,556.35,556.28,0.65693133]
[1741556078796,1.085,556.35,555.97,1.34517987]
[1741556078797,1.085,556.35,556.29,0.65692486]
[1741556078999,1.085,556.35,556.3,0.6569184]
[1741556079191,1.085,556.35,556.31,0.65691194]
[1741556079396,1.085,556.35,556.32,0.29740016]
[1741556079594,1.085,556.35,556.33,0.29740016]
[1741556079792,1.085,556.35,556.33,0.35949885]
[1741556079989,1.085,556.35,556.34,0.29739661]
[1741556080189,1.085,556.35,556.34,0.656889]
[1741556084703,1.085,556.35,556.34,0.35949239]
[1741556092907,1.39793838,556.35,556.34,0.35949239]
[1741556094507,1.085,556.35,556.34,0.35949239]
[1741556095204,2.86175854,556.77,556.34,0.35949239]
[1741556095398,2.86175854,556.76,556.34,0.35949239]
[1741556095601,0.31291025,556.4,556.34,0.35949239]
[1741556095799,2.86175854,556.74,556.34,0.35949239]
[1741556095999,1.06510188,556.73,556.34,0.35949239]
[1741556096202,0.31285398,556.4,556.34,0.35949239]
[1741556096404,1.06510188,556.73,556.34,0.35949239]
[1741556096608,4.63305172,556.73,556.34,0.35949239]
[1741556096807,1.06568972,556.72,556.34,0.35949239]
[1741556097111,1.3722884,556.71,556.34,0.35949239]
[1741556097306,2.75088764,556.71,556.34,0.35949239]
[1741556097610,1.3722884,556.7,556.34,0.35949239]
[1741556098111,1.3722884,556.69,556.34,0.35949239]
[1741556098505,2.1252884,556.69,556.34,0.35949239]
[1741556098910,1.3722884,556.68,556.34,0.35949239]
[1741556099307,0.753,556.69,556.34,0.35949239]
[1741556100215,0.3128582,556.68,556.34,0.35949239]
[1741556102115,0.753,556.69,556.34,0.35949239]
[1741556103209,0.3128568,556.68,556.34,0.35949239]
[1741556106620,2.43933754,556.67,556.34,0.35949239]
[1741556106814,1.0660787,556.66,556.34,0.35949239]
[1741556107017,1.37325884,556.67,556.34,0.35949239]
[1741556107321,6.43381194,556.66,556.34,0.35949239]
[1741556107520,2.86245878,556.65,556.34,0.35949239]
[1741556107821,1.06587132,556.64,556.34,0.35949239]